[Event "Titled Tuesday Blitz June 21 Early 2022"]
[White "Przybylski, Wojciech"]
[Black "Bryakin, Mikhail"]
[WhiteFideId "1117599"]
[BlackFideId "4165314"]
[WhiteElo "2133"]
[BlackElo "2417"]
[Result "1-0"]
[Round "06"]
[TimeControl "180+1"]
[Date "2022.06.21"]
[WhiteClock "0:00:05"]
[BlackClock "0:00:08"]

1. d4 {[%clk 0:03:00]}  d6 {[%clk 0:02:11]} 2. g3 {[%clk 0:03:00]}  g6 {[%clk 0:02:08]} 3. Bg2 {[%clk 0:02:59]}  Bg7 {[%clk 0:02:09]} 4. e4 {[%clk 0:02:58]}  Nd7 {[%clk 0:02:10]} 5. Ne2 {[%clk 0:02:58]}  e5 {[%clk 0:02:10]} 6. O-O {[%clk 0:02:57]}  Ne7 {[%clk 0:02:10]} 7. Nbc3 {[%clk 0:02:56]}  O-O {[%clk 0:02:11]} 8. dxe5 {[%clk 0:02:49]}  Nxe5 {[%clk 0:02:10]} 9. f4 {[%clk 0:02:44]}  Nc4 {[%clk 0:02:08]} 10. b3 {[%clk 0:02:39]}  Nb6 {[%clk 0:02:04]} 11. Be3 {[%clk 0:02:37]}  c6 {[%clk 0:01:57]} 12. Qd2 {[%clk 0:02:33]}  d5 {[%clk 0:01:56]} 13. Rad1 {[%clk 0:02:30]}  Qc7 {[%clk 0:01:56]} 14. Bc5 {[%clk 0:02:21]}  Re8 {[%clk 0:01:50]} 15. e5 {[%clk 0:02:04]}  Nf5 {[%clk 0:01:24]} 16. Bf2 {[%clk 0:02:00]}  f6 {[%clk 0:01:22]} 17. g4 {[%clk 0:01:58]}  Nh6 {[%clk 0:01:22]} 18. exf6 {[%clk 0:01:52]}  Bxf6 {[%clk 0:01:22]} 19. g5 {[%clk 0:01:52]}  Bxc3 {[%clk 0:01:23]} 20. Qxc3 {[%clk 0:01:41]}  Nf5 {[%clk 0:01:19]} 21. Nd4 {[%clk 0:01:34]}  Nxd4 {[%clk 0:01:20]} 22. Bxd4 {[%clk 0:01:33]}  Bf5 {[%clk 0:01:20]} 23. Rde1 {[%clk 0:01:16]}  Qf7 {[%clk 0:01:20]} 24. a4 {[%clk 0:01:04]}  Nd7 {[%clk 0:01:19]} 25. b4 {[%clk 0:01:03]}  a6 {[%clk 0:01:17]} 26. a5 {[%clk 0:01:00]}  Nf8 {[%clk 0:01:16]} 27. Be5 {[%clk 0:00:56]}  Ne6 {[%clk 0:01:15]} 28. h4 {[%clk 0:00:51]}  Ng7 {[%clk 0:01:14]} 29. Bf3 {[%clk 0:00:40]}  Be4 {[%clk 0:01:09]} 30. Bg4 {[%clk 0:00:37]}  Bf5 {[%clk 0:01:05]} 31. Bf3 {[%clk 0:00:35]}  Re7 {[%clk 0:01:05]} 32. Bf6 {[%clk 0:00:32]}  Rxe1 {[%clk 0:01:04]} 33. Rxe1 {[%clk 0:00:31]}  Re8 {[%clk 0:01:04]} 34. Rxe8+ {[%clk 0:00:28]}  Nxe8 {[%clk 0:01:05]} 35. Be5 {[%clk 0:00:28]}  Qe6 {[%clk 0:01:05]} 36. h5 {[%clk 0:00:26]}  Bg4 {[%clk 0:01:02]} 37. h6 {[%clk 0:00:25]}  Bxf3 {[%clk 0:01:01]} 38. Qxf3 {[%clk 0:00:25]}  Kf7 {[%clk 0:01:00]} 39. Kf2 {[%clk 0:00:21]}  Qe7 {[%clk 0:00:59]} 40. Qc3 {[%clk 0:00:19]}  Qd7 {[%clk 0:00:57]} 41. Qc5 {[%clk 0:00:12]}  Ke6 {[%clk 0:00:54]} 42. Qf8 {[%clk 0:00:12]}  Qf7 {[%clk 0:00:55]} 43. Qc5 {[%clk 0:00:10]}  Qf5 {[%clk 0:00:55]} 44. Qb6 {[%clk 0:00:08]}  Qxc2+ {[%clk 0:00:55]} 45. Kg3 {[%clk 0:00:09]}  Qd3+ {[%clk 0:00:54]} 46. Kg2 {[%clk 0:00:09]}  Kf5 {[%clk 0:00:50]} 47. Qxb7 {[%clk 0:00:08]}  Kg4 {[%clk 0:00:50]} 48. Qxc6 {[%clk 0:00:08]}  Qf3+ {[%clk 0:00:49]} 49. Kg1 {[%clk 0:00:08]}  Qe3+ {[%clk 0:00:49]} 50. Kf1 {[%clk 0:00:07]}  Qd3+ {[%clk 0:00:49]} 51. Kg1 {[%clk 0:00:07]}  Kf3 {[%clk 0:00:43]} 52. Qc1 {[%clk 0:00:04]}  Kg4 {[%clk 0:00:37]} 53. Qf1 {[%clk 0:00:04]}  Qb3 {[%clk 0:00:22]} 54. Qg2+ {[%clk 0:00:04]}  Kh4 {[%clk 0:00:20]} 55. Kh2 {[%clk 0:00:04]}  Qd3 {[%clk 0:00:13]} 56. b5 {[%clk 0:00:04]}  axb5 {[%clk 0:00:10]} 57. a6 {[%clk 0:00:04]}  b4 {[%clk 0:00:08]} 58. a7 {[%clk 0:00:05]}  b3 {[%clk 0:00:09]} 59. a8=Q {[%clk 0:00:05]}  b2 {[%clk 0:00:10]} 60. Qa2 {[%clk 0:00:04]}  Nd6 {[%clk 0:00:08]} 61. Qaxb2 {[%clk 0:00:04]}  Nf5 {[%clk 0:00:06]} 62. Qbf2+ {[%clk 0:00:04]}  Kh5 {[%clk 0:00:06]} 63. Qe2+ {[%clk 0:00:04]}  Qxe2 {[%clk 0:00:06]} 64. Qxe2+ {[%clk 0:00:04]}  Kh4 {[%clk 0:00:07]} 65. Qf2+ {[%clk 0:00:05]}  Kg4 {[%clk 0:00:08]} 66. Qg2+ {[%clk 0:00:05]}  Kh4 {[%clk 0:00:08]} 67. Qh3# {[%clk 0:00:05]} 1-0


[Site "https://www.chess.com"]

[Event "Titled Tuesday Blitz June 21 Early 2022"]
[White "Puranik, Abhimanyu"]
[Black "Martin Carmona, Gaston Manuel"]
[WhiteFideId "5061245"]
[BlackFideId "22284567"]
[WhiteElo "2520"]
[BlackElo "2162"]
[Result "1-0"]
[Round "06"]
[TimeControl "180+1"]
[Date "2022.06.21"]
[WhiteClock "0:01:03"]
[BlackClock "0:00:06"]

1. Nf3 {[%clk 0:02:50]}  Nf6 {[%clk 0:03:00]} 2. c4 {[%clk 0:02:49]}  e6 {[%clk 0:02:59]} 3. e3 {[%clk 0:02:49]}  c5 {[%clk 0:02:58]} 4. b3 {[%clk 0:02:50]}  d5 {[%clk 0:02:53]} 5. Bb2 {[%clk 0:02:50]}  Be7 {[%clk 0:02:52]} 6. cxd5 {[%clk 0:02:50]}  exd5 {[%clk 0:02:51]} 7. d4 {[%clk 0:02:48]}  O-O {[%clk 0:02:49]} 8. Be2 {[%clk 0:02:48]}  cxd4 {[%clk 0:02:47]} 9. Nxd4 {[%clk 0:02:46]}  Nc6 {[%clk 0:02:48]} 10. O-O {[%clk 0:02:45]}  a6 {[%clk 0:02:48]} 11. Nd2 {[%clk 0:02:39]}  Bd6 {[%clk 0:02:47]} 12. N2f3 {[%clk 0:02:39]}  Bc7 {[%clk 0:02:46]} 13. Rc1 {[%clk 0:02:33]}  Qd6 {[%clk 0:02:46]} 14. Nxc6 {[%clk 0:02:32]}  bxc6 {[%clk 0:02:45]} 15. Be5 {[%clk 0:02:32]}  Qe7 {[%clk 0:02:39]} 16. Bxc7 {[%clk 0:02:32]}  Qxc7 {[%clk 0:02:40]} 17. Qd4 {[%clk 0:02:32]}  Re8 {[%clk 0:02:34]} 18. h3 {[%clk 0:02:28]}  Bf5 {[%clk 0:02:30]} 19. Qc5 {[%clk 0:02:12]}  Bd7 {[%clk 0:02:19]} 20. Bd3 {[%clk 0:02:09]}  a5 {[%clk 0:02:15]} 21. Nd4 {[%clk 0:02:09]}  Ne4 {[%clk 0:02:08]} 22. Bxe4 {[%clk 0:02:08]}  Rxe4 {[%clk 0:02:08]} 23. Qxd5 {[%clk 0:02:05]}  Re5 {[%clk 0:01:24]} 24. Qf3 {[%clk 0:02:04]}  a4 {[%clk 0:01:05]} 25. b4 {[%clk 0:02:03]}  Rb8 {[%clk 0:00:45]} 26. Nxc6 {[%clk 0:01:58]}  Bxc6 {[%clk 0:00:44]} 27. Rxc6 {[%clk 0:01:58]}  Qd7 {[%clk 0:00:35]} 28. Rfc1 {[%clk 0:01:57]}  h5 {[%clk 0:00:34]} 29. Rc7 {[%clk 0:01:55]}  Qe6 {[%clk 0:00:34]} 30. a3 {[%clk 0:01:54]}  Rf5 {[%clk 0:00:34]} 31. Qg3 {[%clk 0:01:48]}  Re8 {[%clk 0:00:27]} 32. R7c4 {[%clk 0:01:39]}  Rf6 {[%clk 0:00:24]} 33. b5 {[%clk 0:01:34]}  Rg6 {[%clk 0:00:23]} 34. Qf3 {[%clk 0:01:34]}  Qd6 {[%clk 0:00:14]} 35. Rxa4 {[%clk 0:01:28]}  Re5 {[%clk 0:00:11]} 36. Ra8+ {[%clk 0:01:19]}  Kh7 {[%clk 0:00:11]} 37. Qxf7 {[%clk 0:01:15]}  Rxg2+ {[%clk 0:00:09]} 38. Kxg2 {[%clk 0:01:13]}  Rg5+ {[%clk 0:00:09]} 39. Kh1 {[%clk 0:01:11]}  Qd3 {[%clk 0:00:06]} 40. Qg8+ {[%clk 0:01:07]}  Kg6 {[%clk 0:00:06]} 41. Ra6+ {[%clk 0:01:03]}  Kf5 {[%clk 0:00:06]} 42. Qe6# {[%clk 0:01:03]} 1-0


[Site "https://www.chess.com"]

[Event "Titled Tuesday Blitz June 21 Early 2022"]
[White "Rodchenkov, Sergey D."]
[Black "Aldokhin, Ivan"]
[WhiteFideId "4168712"]
[BlackFideId "24115720"]
[WhiteElo "2293"]
[BlackElo "2231"]
[Result "1-0"]
[Round "06"]
[TimeControl "180+1"]
[Date "2022.06.21"]
[WhiteClock "0:00:14"]
[BlackClock "0:00:02"]

1. e4 {[%clk 0:03:00]}  e6 {[%clk 0:03:00]} 2. d4 {[%clk 0:03:00]}  d5 {[%clk 0:03:00]} 3. Nc3 {[%clk 0:03:01]}  Bb4 {[%clk 0:03:00]} 4. e5 {[%clk 0:03:01]}  Qd7 {[%clk 0:03:00]} 5. Qg4 {[%clk 0:02:59]}  f5 {[%clk 0:02:57]} 6. Qg3 {[%clk 0:02:57]}  b6 {[%clk 0:02:57]} 7. a3 {[%clk 0:02:54]}  Bxc3+ {[%clk 0:02:57]} 8. bxc3 {[%clk 0:02:55]}  Ba6 {[%clk 0:02:56]} 9. h4 {[%clk 0:02:55]}  Bxf1 {[%clk 0:02:55]} 10. Kxf1 {[%clk 0:02:56]}  Nc6 {[%clk 0:02:51]} 11. h5 {[%clk 0:02:53]}  h6 {[%clk 0:02:48]} 12. Nf3 {[%clk 0:02:49]}  O-O-O {[%clk 0:02:44]} 13. Qf4 {[%clk 0:02:38]}  Nge7 {[%clk 0:02:39]} 14. g3 {[%clk 0:02:36]}  Na5 {[%clk 0:02:38]} 15. a4 {[%clk 0:02:36]}  g5 {[%clk 0:02:25]} 16. hxg6 {[%clk 0:02:33]}  Nxg6 {[%clk 0:02:25]} 17. Qd2 {[%clk 0:02:34]}  f4 {[%clk 0:02:14]} 18. Qd3 {[%clk 0:02:35]}  Qf7 {[%clk 0:02:08]} 19. g4 {[%clk 0:02:24]}  Nc4 {[%clk 0:01:56]} 20. Nd2 {[%clk 0:02:19]}  Ne3+ {[%clk 0:01:35]} 21. Ke1 {[%clk 0:01:54]}  Nxg4 {[%clk 0:01:28]} 22. a5 {[%clk 0:01:46]}  f3 {[%clk 0:01:09]} 23. Qa6+ {[%clk 0:01:09]}  Kb8 {[%clk 0:01:08]} 24. Nb3 {[%clk 0:01:06]}  Qd7 {[%clk 0:00:23]} 25. Nc5 {[%clk 0:00:48]}  Qc8 {[%clk 0:00:18]} 26. axb6 {[%clk 0:00:35]}  Qxa6 {[%clk 0:00:17]} 27. Nxa6+ {[%clk 0:00:35]}  Kb7 {[%clk 0:00:17]} 28. bxc7 {[%clk 0:00:35]}  Rc8 {[%clk 0:00:14]} 29. Nc5+ {[%clk 0:00:36]}  Kxc7 {[%clk 0:00:13]} 30. Rxa7+ {[%clk 0:00:35]}  Kc6 {[%clk 0:00:13]} 31. Ra6+ {[%clk 0:00:34]}  Kb5 {[%clk 0:00:09]} 32. Rxe6 {[%clk 0:00:35]}  Rhg8 {[%clk 0:00:05]} 33. Bxh6 {[%clk 0:00:31]}  Kc4 {[%clk 0:00:05]} 34. Kd2 {[%clk 0:00:26]}  Rb8 {[%clk 0:00:03]} 35. Rg1 {[%clk 0:00:14]}  Nxf2 {[%clk 0:00:02]} 36. Rgxg6 {[%clk 0:00:14]}  Rxg6 {[%clk 0:00:02]} 37. Rxg6 {[%clk 0:00:15]}  Ne4+ {[%clk 0:00:02]} 38. Nxe4 {[%clk 0:00:15]}  dxe4 {[%clk 0:00:02]} 39. Be3 {[%clk 0:00:14]} 1-0


[Site "https://www.chess.com"]

[Event "Titled Tuesday Blitz June 21 Early 2022"]
[White "Rohith Krishna S"]
[Black "Bortnyk, Mykola"]
[WhiteFideId "46617051"]
[BlackFideId "14120836"]
[WhiteElo "2117"]
[BlackElo "2582"]
[Result "1-0"]
[Round "06"]
[TimeControl "180+1"]
[Date "2022.06.21"]
[WhiteClock "0:00:14"]
[BlackClock "0:00:09"]

1. Nf3 {[%clk 0:03:00]}  c5 {[%clk 0:02:59]} 2. g3 {[%clk 0:03:01]}  g6 {[%clk 0:02:58]} 3. Bg2 {[%clk 0:03:01]}  Bg7 {[%clk 0:02:58]} 4. O-O {[%clk 0:03:01]}  Nc6 {[%clk 0:02:58]} 5. d3 {[%clk 0:03:02]}  d5 {[%clk 0:02:58]} 6. e4 {[%clk 0:03:02]}  dxe4 {[%clk 0:02:58]} 7. dxe4 {[%clk 0:03:02]}  Bg4 {[%clk 0:02:51]} 8. Qe1 {[%clk 0:02:50]}  Qc8 {[%clk 0:02:38]} 9. c3 {[%clk 0:02:48]}  Nf6 {[%clk 0:02:37]} 10. Na3 {[%clk 0:02:39]}  O-O {[%clk 0:02:35]} 11. Bf4 {[%clk 0:02:39]}  Nh5 {[%clk 0:02:32]} 12. Be3 {[%clk 0:02:39]}  b6 {[%clk 0:02:32]} 13. Nc4 {[%clk 0:02:30]}  Rd8 {[%clk 0:02:27]} 14. a4 {[%clk 0:02:26]}  Nf6 {[%clk 0:02:27]} 15. Nfd2 {[%clk 0:02:25]}  Bh3 {[%clk 0:02:23]} 16. Qe2 {[%clk 0:02:21]}  Bxg2 {[%clk 0:02:21]} 17. Kxg2 {[%clk 0:02:21]}  Qe6 {[%clk 0:02:11]} 18. f3 {[%clk 0:02:20]}  h5 {[%clk 0:02:06]} 19. Rfd1 {[%clk 0:02:19]}  Nd7 {[%clk 0:02:04]} 20. Bf4 {[%clk 0:02:15]}  Nde5 {[%clk 0:02:04]} 21. Nxe5 {[%clk 0:02:14]}  Bxe5 {[%clk 0:02:04]} 22. Be3 {[%clk 0:02:14]}  Bg7 {[%clk 0:02:01]} 23. Bf4 {[%clk 0:02:13]}  Na5 {[%clk 0:01:55]} 24. Nf1 {[%clk 0:02:01]}  Qc4 {[%clk 0:01:46]} 25. Kf2 {[%clk 0:01:57]}  Bf6 {[%clk 0:01:29]} 26. Ne3 {[%clk 0:01:49]}  Qxe2+ {[%clk 0:01:29]} 27. Kxe2 {[%clk 0:01:50]}  e5 {[%clk 0:01:29]} 28. Nd5 {[%clk 0:01:38]}  Rxd5 {[%clk 0:01:28]} 29. Rxd5 {[%clk 0:01:39]}  exf4 {[%clk 0:01:29]} 30. gxf4 {[%clk 0:01:40]}  Nc4 {[%clk 0:01:18]} 31. e5 {[%clk 0:01:24]}  Bg7 {[%clk 0:01:10]} 32. b3 {[%clk 0:01:24]}  Na5 {[%clk 0:01:10]} 33. b4 {[%clk 0:01:25]}  cxb4 {[%clk 0:01:09]} 34. cxb4 {[%clk 0:01:25]}  Nc6 {[%clk 0:01:10]} 35. b5 {[%clk 0:01:25]}  Nd8 {[%clk 0:01:05]} 36. a5 {[%clk 0:01:20]}  Ne6 {[%clk 0:00:57]} 37. Ke3 {[%clk 0:01:02]}  Bh6 {[%clk 0:00:58]} 38. axb6 {[%clk 0:00:59]}  Nxf4 {[%clk 0:00:58]} 39. Rd7 {[%clk 0:00:56]}  Nd5+ {[%clk 0:00:54]} 40. Ke4 {[%clk 0:00:55]}  Nxb6 {[%clk 0:00:49]} 41. Raxa7 {[%clk 0:00:49]}  Rc8 {[%clk 0:00:36]} 42. Rxf7 {[%clk 0:00:45]}  Rc4+ {[%clk 0:00:36]} 43. Kd3 {[%clk 0:00:44]}  Rc5 {[%clk 0:00:29]} 44. Rfb7 {[%clk 0:00:41]}  Nc4 {[%clk 0:00:21]} 45. Rb8+ {[%clk 0:00:33]}  Bf8 {[%clk 0:00:20]} 46. Raa8 {[%clk 0:00:33]}  Nxe5+ {[%clk 0:00:20]} 47. Kd4 {[%clk 0:00:34]}  Nxf3+ {[%clk 0:00:21]} 48. Ke3 {[%clk 0:00:28]}  Rc3+ {[%clk 0:00:20]} 49. Kf2 {[%clk 0:00:24]}  Kg7 {[%clk 0:00:19]} 50. Rxf8 {[%clk 0:00:24]}  Nxh2 {[%clk 0:00:20]} 51. b6 {[%clk 0:00:22]}  Ng4+ {[%clk 0:00:20]} 52. Ke2 {[%clk 0:00:22]}  Re3+ {[%clk 0:00:20]} 53. Kd2 {[%clk 0:00:22]}  Rb3 {[%clk 0:00:21]} 54. Rfb8 {[%clk 0:00:20]}  Ne5 {[%clk 0:00:21]} 55. b7 {[%clk 0:00:17]}  Nc6 {[%clk 0:00:20]} 56. Rc8 {[%clk 0:00:17]}  Rxb7 {[%clk 0:00:17]} 57. Rxc6 {[%clk 0:00:17]}  Kh6 {[%clk 0:00:17]} 58. Raa6 {[%clk 0:00:17]}  Rg7 {[%clk 0:00:16]} 59. Ke3 {[%clk 0:00:18]}  h4 {[%clk 0:00:16]} 60. Kf4 {[%clk 0:00:18]}  Kh5 {[%clk 0:00:15]} 61. Kf3 {[%clk 0:00:19]}  Rf7+ {[%clk 0:00:15]} 62. Kg2 {[%clk 0:00:19]}  Rg7 {[%clk 0:00:15]} 63. Kh3 {[%clk 0:00:19]}  Rg8 {[%clk 0:00:15]} 64. Kh2 {[%clk 0:00:17]}  Rg7 {[%clk 0:00:14]} 65. Rc5+ {[%clk 0:00:17]}  g5 {[%clk 0:00:14]} 66. Rcc6 {[%clk 0:00:18]}  Rh7 {[%clk 0:00:10]} 67. Kh3 {[%clk 0:00:17]}  g4+ {[%clk 0:00:09]} 68. Kh2 {[%clk 0:00:17]}  Kg5 {[%clk 0:00:05]} 69. Ra5+ {[%clk 0:00:16]}  Kf4 {[%clk 0:00:05]} 70. Rc4+ {[%clk 0:00:17]}  Kf3 {[%clk 0:00:05]} 71. Ra3+ {[%clk 0:00:17]}  Ke2 {[%clk 0:00:06]} 72. Rxg4 {[%clk 0:00:18]}  h3 {[%clk 0:00:06]} 73. Rxh3 {[%clk 0:00:14]}  Rf7 {[%clk 0:00:06]} 74. Rg2+ {[%clk 0:00:13]}  Kf1 {[%clk 0:00:07]} 75. Ra2 {[%clk 0:00:11]}  Rf8 {[%clk 0:00:07]} 76. Rb3 {[%clk 0:00:11]}  Rh8+ {[%clk 0:00:07]} 77. Kg3 {[%clk 0:00:11]}  Rg8+ {[%clk 0:00:08]} 78. Kf4 {[%clk 0:00:12]}  Rf8+ {[%clk 0:00:08]} 79. Kg5 {[%clk 0:00:12]}  Rg8+ {[%clk 0:00:09]} 80. Kf6 {[%clk 0:00:13]}  Rf8+ {[%clk 0:00:09]} 81. Kg7 {[%clk 0:00:14]} 1-0


[Site "https://www.chess.com"]

[Event "Titled Tuesday Blitz June 21 Early 2022"]
[White "Rom, Jasper"]
[Black "Shuvalova, Polina"]
[WhiteFideId "2023733"]
[BlackFideId "24171760"]
[WhiteElo "2233"]
[BlackElo "2330"]
[Result "1/2-1/2"]
[Round "06"]
[TimeControl "180+1"]
[Date "2022.06.21"]
[WhiteClock "0:00:04"]
[BlackClock "0:00:01"]

1. e4 {[%clk 0:03:00]}  c6 {[%clk 0:02:42]} 2. d4 {[%clk 0:03:00]}  d5 {[%clk 0:02:42]} 3. Nd2 {[%clk 0:03:00]}  dxe4 {[%clk 0:02:41]} 4. Nxe4 {[%clk 0:03:00]}  Nf6 {[%clk 0:02:40]} 5. Nxf6+ {[%clk 0:02:59]}  exf6 {[%clk 0:02:41]} 6. c3 {[%clk 0:03:00]}  Bd6 {[%clk 0:02:41]} 7. Bd3 {[%clk 0:03:00]}  O-O {[%clk 0:02:42]} 8. Qc2 {[%clk 0:03:00]}  Re8+ {[%clk 0:02:42]} 9. Ne2 {[%clk 0:03:00]}  h5 {[%clk 0:02:43]} 10. O-O {[%clk 0:02:53]}  h4 {[%clk 0:02:42]} 11. Be3 {[%clk 0:02:43]}  h3 {[%clk 0:02:38]} 12. g3 {[%clk 0:02:35]}  Nd7 {[%clk 0:02:38]} 13. Bf4 {[%clk 0:02:27]}  Nf8 {[%clk 0:02:38]} 14. Bxd6 {[%clk 0:02:26]}  Qxd6 {[%clk 0:02:38]} 15. f3 {[%clk 0:02:10]}  Bd7 {[%clk 0:02:34]} 16. Qd2 {[%clk 0:02:07]}  Re7 {[%clk 0:02:33]} 17. Qf4 {[%clk 0:02:04]}  Qd5 {[%clk 0:02:25]} 18. c4 {[%clk 0:01:53]}  Qh5 {[%clk 0:02:19]} 19. g4 {[%clk 0:01:50]}  Qg5 {[%clk 0:02:18]} 20. Qxg5 {[%clk 0:01:42]}  fxg5 {[%clk 0:02:19]} 21. Ng3 {[%clk 0:01:42]}  Rd8 {[%clk 0:02:13]} 22. Rad1 {[%clk 0:01:37]}  Be6 {[%clk 0:01:59]} 23. Rfe1 {[%clk 0:01:02]}  Red7 {[%clk 0:01:57]} 24. Ne2 {[%clk 0:01:02]}  b5 {[%clk 0:01:33]} 25. b3 {[%clk 0:00:59]}  bxc4 {[%clk 0:01:26]} 26. bxc4 {[%clk 0:00:59]}  Rb7 {[%clk 0:01:26]} 27. Rb1 {[%clk 0:00:58]}  Rdb8 {[%clk 0:01:26]} 28. Nc3 {[%clk 0:00:50]}  Nd7 {[%clk 0:01:22]} 29. Kf2 {[%clk 0:00:39]}  Nb6 {[%clk 0:01:17]} 30. c5 {[%clk 0:00:27]}  Nd7 {[%clk 0:01:15]} 31. Be4 {[%clk 0:00:22]}  Rb2+ {[%clk 0:01:02]} 32. Kg3 {[%clk 0:00:22]}  Rxb1 {[%clk 0:00:29]} 33. Rxb1 {[%clk 0:00:23]}  Rxb1 {[%clk 0:00:28]} 34. Bxb1 {[%clk 0:00:22]}  Nf6 {[%clk 0:00:21]} 35. Kxh3 {[%clk 0:00:21]}  Kf8 {[%clk 0:00:21]} 36. Kg3 {[%clk 0:00:21]}  Ke7 {[%clk 0:00:22]} 37. Be4 {[%clk 0:00:18]}  Kd7 {[%clk 0:00:21]} 38. h4 {[%clk 0:00:15]}  gxh4+ {[%clk 0:00:20]} 39. Kxh4 {[%clk 0:00:16]}  Kc7 {[%clk 0:00:20]} 40. g5 {[%clk 0:00:16]}  Nd7 {[%clk 0:00:19]} 41. Kg3 {[%clk 0:00:09]}  Nb8 {[%clk 0:00:19]} 42. Kf4 {[%clk 0:00:09]}  a5 {[%clk 0:00:18]} 43. a3 {[%clk 0:00:08]}  Na6 {[%clk 0:00:17]} 44. Ke3 {[%clk 0:00:08]}  Nb8 {[%clk 0:00:17]} 45. f4 {[%clk 0:00:08]}  g6 {[%clk 0:00:14]} 46. Bd3 {[%clk 0:00:08]}  Nd7 {[%clk 0:00:13]} 47. Be4 {[%clk 0:00:08]}  Nf8 {[%clk 0:00:11]} 48. d5 {[%clk 0:00:08]}  cxd5 {[%clk 0:00:09]} 49. Bxd5 {[%clk 0:00:06]}  Bxd5 {[%clk 0:00:08]} 50. Nxd5+ {[%clk 0:00:05]}  Kc6 {[%clk 0:00:08]} 51. Kd4 {[%clk 0:00:05]}  Ne6+ {[%clk 0:00:08]} 52. Ke5 {[%clk 0:00:05]}  Nxc5 {[%clk 0:00:04]} 53. Ne7+ {[%clk 0:00:05]}  Kd7 {[%clk 0:00:03]} 54. Kf6 {[%clk 0:00:05]}  Nd3 {[%clk 0:00:03]} 55. Nd5 {[%clk 0:00:05]}  Ke8 {[%clk 0:00:02]} 56. Nc7+ {[%clk 0:00:04]}  Kf8 {[%clk 0:00:02]} 57. Nd5 {[%clk 0:00:04]}  a4 {[%clk 0:00:01]} 58. Nb6 {[%clk 0:00:04]}  Nxf4 {[%clk 0:00:01]} 59. Nxa4 {[%clk 0:00:05]}  Nd5+ {[%clk 0:00:01]} 60. Ke5 {[%clk 0:00:04]}  Nc7 {[%clk 0:00:02]} 61. Nc5 {[%clk 0:00:04]}  Nb5 {[%clk 0:00:01]} 62. a4 {[%clk 0:00:04]}  Na7 {[%clk 0:00:02]} 63. Kd6 {[%clk 0:00:03]}  Kg7 {[%clk 0:00:01]} 64. Kc7 {[%clk 0:00:03]}  f6 {[%clk 0:00:01]} 65. gxf6+ {[%clk 0:00:03]}  Kxf6 {[%clk 0:00:02]} 66. Kb7 {[%clk 0:00:03]}  Ke5 {[%clk 0:00:01]} 67. Kxa7 {[%clk 0:00:03]}  g5 {[%clk 0:00:02]} 68. Nd7+ {[%clk 0:00:03]}  Ke6 {[%clk 0:00:01]} 69. Nf8+ {[%clk 0:00:03]}  Kf7 {[%clk 0:00:02]} 70. Nd7 {[%clk 0:00:03]}  Ke6 {[%clk 0:00:02]} 71. Nc5+ {[%clk 0:00:04]}  Kd5 {[%clk 0:00:02]} 72. Nd3 {[%clk 0:00:04]}  Ke4 {[%clk 0:00:02]} 73. Ne1 {[%clk 0:00:04]}  g4 {[%clk 0:00:01]} 74. a5 {[%clk 0:00:04]}  Ke3 {[%clk 0:00:01]} 75. Ng2+ {[%clk 0:00:03]}  Kf2 {[%clk 0:00:02]} 76. Nh4 {[%clk 0:00:03]}  Kg3 {[%clk 0:00:01]} 77. Nf5+ {[%clk 0:00:04]}  Kf4 {[%clk 0:00:02]} 78. Nh4 {[%clk 0:00:04]}  Kg3 {[%clk 0:00:02]} 79. Ng6 {[%clk 0:00:04]}  Kf2 {[%clk 0:00:01]} 80. Nh4 {[%clk 0:00:04]}  Kg3 {[%clk 0:00:01]} 1/2-1/2


[Site "https://www.chess.com"]

[Event "Titled Tuesday Blitz June 21 Early 2022"]
[White "Rosenberg, Evan S"]
[Black "Coto Mederos, Michel"]
[WhiteFideId "2019299"]
[BlackFideId "3508528"]
[WhiteElo "2380"]
[BlackElo "2427"]
[Result "0-1"]
[Round "06"]
[TimeControl "180+1"]
[Date "2022.06.21"]
[WhiteClock "0:00:03"]
[BlackClock "0:00:12"]

1. e4 {[%clk 0:03:00]}  d5 {[%clk 0:02:55]} 2. exd5 {[%clk 0:03:00]}  Qxd5 {[%clk 0:02:51]} 3. Nc3 {[%clk 0:03:00]}  Qa5 {[%clk 0:02:50]} 4. b4 {[%clk 0:03:00]}  Qxb4 {[%clk 0:02:50]} 5. Rb1 {[%clk 0:03:00]}  Qd6 {[%clk 0:02:50]} 6. Nf3 {[%clk 0:02:54]}  c6 {[%clk 0:02:49]} 7. Bc4 {[%clk 0:02:53]}  Nf6 {[%clk 0:02:44]} 8. O-O {[%clk 0:02:46]}  e6 {[%clk 0:02:40]} 9. Re1 {[%clk 0:02:40]}  Be7 {[%clk 0:02:39]} 10. Rb3 {[%clk 0:02:40]}  O-O {[%clk 0:02:38]} 11. Ba3 {[%clk 0:02:40]}  Qc7 {[%clk 0:02:38]} 12. Bxe7 {[%clk 0:02:32]}  Qxe7 {[%clk 0:02:39]} 13. d4 {[%clk 0:02:29]}  Qc7 {[%clk 0:02:30]} 14. Ne5 {[%clk 0:02:27]}  Nbd7 {[%clk 0:02:25]} 15. Nxf7 {[%clk 0:02:17]}  Rxf7 {[%clk 0:02:26]} 16. Bxe6 {[%clk 0:02:17]}  Nf8 {[%clk 0:02:26]} 17. Bxf7+ {[%clk 0:02:12]}  Qxf7 {[%clk 0:02:27]} 18. Ne4 {[%clk 0:01:54]}  Nxe4 {[%clk 0:01:51]} 19. Rxe4 {[%clk 0:01:55]}  Be6 {[%clk 0:01:51]} 20. Rf3 {[%clk 0:01:48]}  Qd7 {[%clk 0:01:51]} 21. Rh4 {[%clk 0:01:23]}  Re8 {[%clk 0:01:36]} 22. h3 {[%clk 0:01:19]}  Ng6 {[%clk 0:01:24]} 23. Rh5 {[%clk 0:01:18]}  Bd5 {[%clk 0:01:04]} 24. Rg3 {[%clk 0:01:05]}  Bxa2 {[%clk 0:01:01]} 25. Rhg5 {[%clk 0:00:42]}  Qe7 {[%clk 0:00:50]} 26. Kh2 {[%clk 0:00:36]}  Bd5 {[%clk 0:00:43]} 27. Qd3 {[%clk 0:00:23]}  Qe4 {[%clk 0:00:39]} 28. Qa3 {[%clk 0:00:15]}  a6 {[%clk 0:00:32]} 29. Qd6 {[%clk 0:00:13]}  Qe7 {[%clk 0:00:27]} 30. Qxe7 {[%clk 0:00:10]}  Rxe7 {[%clk 0:00:28]} 31. c3 {[%clk 0:00:06]}  a5 {[%clk 0:00:28]} 32. f4 {[%clk 0:00:05]}  Nxf4 {[%clk 0:00:25]} 33. R3g4 {[%clk 0:00:04]}  Ne2 {[%clk 0:00:21]} 34. h4 {[%clk 0:00:02]}  a4 {[%clk 0:00:20]} 35. h5 {[%clk 0:00:02]}  h6 {[%clk 0:00:19]} 36. Re5 {[%clk 0:00:02]}  Rxe5 {[%clk 0:00:17]} 37. dxe5 {[%clk 0:00:03]}  a3 {[%clk 0:00:16]} 38. Ra4 {[%clk 0:00:03]}  a2 {[%clk 0:00:16]} 39. g4 {[%clk 0:00:02]}  Nxc3 {[%clk 0:00:16]} 40. Ra8+ {[%clk 0:00:02]}  Kf7 {[%clk 0:00:16]} 41. Kg3 {[%clk 0:00:02]}  b5 {[%clk 0:00:15]} 42. Kf4 {[%clk 0:00:02]}  Na4 {[%clk 0:00:15]} 43. Ra7+ {[%clk 0:00:01]}  Ke6 {[%clk 0:00:14]} 44. Rxg7 {[%clk 0:00:01]}  a1=Q {[%clk 0:00:13]} 45. Rg6+ {[%clk 0:00:02]}  Kf7 {[%clk 0:00:13]} 46. Rf6+ {[%clk 0:00:02]}  Ke7 {[%clk 0:00:14]} 47. Kf5 {[%clk 0:00:01]}  Qb1+ {[%clk 0:00:11]} 48. Kf4 {[%clk 0:00:01]}  Qe4+ {[%clk 0:00:11]} 49. Kg3 {[%clk 0:00:02]}  Qxe5+ {[%clk 0:00:12]} 50. Rf4 {[%clk 0:00:02]}  Nc5 {[%clk 0:00:10]} 51. g5 {[%clk 0:00:02]}  hxg5 {[%clk 0:00:11]} 52. h6 {[%clk 0:00:03]}  Qxf4+ {[%clk 0:00:12]} 53. Kh3 {[%clk 0:00:03]}  Qh4# {[%clk 0:00:12]} 0-1


[Site "https://www.chess.com"]